Cogmind - Beta 15 @@@ ROGUE MODE // 2025.05.27 @ 19:26:06 Player: Hinzy Result: Destroyed by NW-540(j) with Overtuned Pulse Rifle Performance ------------- Evolutions (0) 0 Regions Visited (4) 800 Robots Destroyed (50) 250 Value Destroyed (978) 978 Prototype IDs (6) 120 Alien Tech Used (0) 0 Bonus (872) 872 TOTAL SCORE: 3020 Bonus ------- Follower Combat Kills 72 Registered with UFD 300 Met Optimus in HQ 500 Cogmind --------- Core Integrity 0/250 Matter 230/300 Energy 315/315 System Corruption 0% Temperature Cool (71) Movement Walking (170) Ox1 Location -9/Scraptown Parts ------- > --- POWER (1) -------- Neutrino Core > --- PROPULSION (2) --- Overtuned Titanium Leg Overtuned Titanium Leg > --- UTILITY (2) ------ Large Storage Unit Improved Targeting Computer > --- WEAPON (2) ------- Overtuned Pulse Rifle Grenade Launcher > --- INVENTORY (15) --- Light Ion Engine Light Treads Overtuned Titanium Leg Compact Wheel Compact Wheel Active Sensor Suite Light Armor Plating Hardened Medium Armor Plating Scrap Shield Grenade Launcher CPS Tube (2) Chainsword Peak State ------------ > --- POWER ------------ Neutrino Core > --- PROPULSION ------- Overtuned Titanium Leg Overtuned Titanium Leg > --- UTILITY ---------- Large Storage Unit Improved Targeting Computer > --- WEAPON ----------- Overtuned Pulse Rifle Heavy Assault Rifle > --- INVENTORY -------- Light Ion Engine Light Treads Compact Wheel Compact Wheel Active Sensor Suite Light Armor Plating Hardened Medium Armor Plating Scrap Shield Grenade Launcher Grenade Launcher CPS Tube Chainsword [Rating: 24] Favorites ----------- Power Light Ion Engine Engine Light Ion Engine Power Core Neutrino Core Propulsion Aluminum Leg Leg Aluminum Leg Wheel Compact Wheel Hover Unit Hover Unit Utility Small Storage Unit Device Seismic Detector Storage Small Storage Unit Processor Improved Targeting Computer Weapon Assault Rifle Energy Gun EM Pulse Gun Ballistic Gun Assault Rifle Launcher Grenade Launcher Special Weapon Flamer Build | -11 -10 -10 -9 -9 ------- Run | Yrd Mat Sub Rec Scr Slots Evolved . | . . . . . Power . | . . . . . Propulsion . | . . . . . Utility . | . . . . . Weapon . | . . . . . Parts Attached 31 | 1 11 5 9 5 Power 3 | . 2 1 . . Engine 2 | . 2 . . . Core 1 | . . 1 . . Reactor . | . . . . . Propulsion 13 | . 5 3 2 3 Treads . | . . . . . Leg 5 | . . 2 . 3 Wheel 7 | . 4 1 2 . Hover 1 | . 1 . . . Flight . | . . . . . Utility 4 | 1 2 . 1 . Device 1 | 1 . . . . Storage 2 | . 2 . . . Processor 1 | . . . 1 . Hackware . | . . . . . Protection . | . . . . . Artifact . | . . . . . Weapon 11 | . 2 1 6 2 Energy Gun 1 | . . . . 1 Energy Cannon . | . . . . . Ballistic Gun 6 | . 1 1 4 . Ballistic Cannon . | . . . . . Launcher 3 | . 1 . 1 1 Special Weapon 1 | . . . 1 . Impact Weapon . | . . . . . Slashing Weapon . | . . . . . Piercing Weapon . | . . . . . Special Melee Weapon . | . . . . . Unidentified Prototypes . | . . . . . Parts Lost 6 | . 2 . 4 . Power . | . . . . . Propulsion 1 | . 1 . . . Utility . | . . . . . Weapon 5 | . 1 . 4 . Highest Loss Streak 2 | . 2 . 2 . To Critical Strikes . | . . . . . Average Backups 8 | 6 9 14 13 12 Power 1 | 1 1 2 2 1 Propulsion 4 | 4 4 5 6 4 Utility . | . 1 2 2 2 Weapon 2 | 1 1 4 3 3 Tool/Special . | . . . . . Unused Backups 27 | 6 3 3 . 15 Power 2 | 1 . . . 1 Propulsion 10 | 2 2 . . 6 Utility 6 | 1 . 1 . 4 Weapon 7 | 2 1 1 . 3 Tool/Special 2 | . . 1 . 1 Average Slot Usage (%) 99 | . 97 99 98 99 Engine 5 | . 14 13 . . Core 8 | . . . 14 14 Leg 4 | . 1 2 13 1 Wheel 23 | . 22 25 14 26 Device 5 | . 14 13 . . Storage 14 | . 14 14 14 14 Processor 8 | . . . 13 14 Ballistic Gun 20 | . 19 14 19 27 Launcher 5 | . 3 14 4 . Peak Build Rating 24 | 7 8 20 22 24 Average Rating 9 | 6 7 9 18 17 On Entrance 11 | 6 7 8 19 17 Naked Turns . | . . . . . Heaviest Build 42 | 13 31 42 41 40 Greatest Support 38 | 20 26 35 35 38 Greatest Overweight (x) 2 | . 1 1 2 2 Average Overweight (x) . | . . . . . Largest Inventory Capacity 15 | 8 15 15 15 15 Average Capacity 10 | 8 12 15 15 15 Most Carried 15 | 6 15 15 15 15 Average Carried 9 | 6 9 14 14 14 Final Capacity 15 | 8 15 15 15 15 Final Carried 15 | 6 15 15 15 15 Class Distribution -------------------- 89% | Mutant 10% | Scavenger-Mutant Dominant Class ---------------- Mutant | -10/Materials Scavenger-Mutant | -10/Subcaves Mutant | -9/Recycling Mutant | -9/Scraptown Resources | -11 -10 -10 -9 -9 ----------- Run | Yrd Mat Sub Rec Scr Matter Collected 1105 | 225 226 135 452 67 Remotely . | . . . . . Salvage Created 1933 | 28 347 60 1482 16 Parts 79 | 4 24 4 45 2 Haulers Intercepted 3 | . 1 . 2 . Recyclers Shooed 6 | . 1 . 5 . Parts Field Recycled . | . . . . . Retrieved Matter . | . . . . . Parts Self-Destructed 11 | . . 11 . . Prevented . | . . . . . Kills | -11 -10 -10 -9 -9 ------- Run | Yrd Mat Sub Rec Scr Combat Hostiles Destroyed 21 | . 4 4 12 1 Guns 8 | . 4 1 3 . AOE 13 | . . 3 9 1 Classes Destroyed 17 | 1 7 2 6 1 Builder 5 | . 2 . 3 . Tunneler 3 | 1 1 . 1 . Hauler 3 | . 1 . 2 . Recycler 14 | . 1 . 13 . Mechanic 1 | . 1 . . . Operator 1 | . 1 . . . Turret 2 | . . 2 . . Swarmer 4 | . 2 2 . . Grunt 5 | . 2 1 2 . Brawler 2 | . . . 2 . Protector 1 | . . . 1 . Sentry 4 | . . . 4 . Demolisher 1 | . . . 1 . Hunter 1 | . . . 1 . Programmer 1 | . . . 1 . Subdweller 1 | . . 1 . . Federalist 1 | . . . . 1 Best Kill Streak 13 | 1 5 2 13 1 Combat Bots Only 8 | . 4 1 8 1 Max Kills in Single Turn 3 | 1 2 2 3 1 Gunslinging . | . . . . . Exploded 3 | . . 1 3 1 Melee . | . . . . . Uniques/NPCs Destroyed . | . . . . . Combat | -11 -10 -10 -9 -9 -------- Run | Yrd Mat Sub Rec Scr Hostile Shots Fired 150 | . 29 75 31 15 Missed 45 | . 7 28 7 3 Hits 105 | . 22 47 24 12 Projectile 105 | . 22 47 24 12 AOE 1 | . . . 1 . Critical Strikes 7 | . 2 . 3 2 Damage Taken 1256 | . 223 324 463 246 Core 257 | . 29 83 81 64 Absorbed by Shields . | . . . . . Core Remaining (%) 100 | 100 . . . . Volleys Fired 115 | 5 32 24 44 10 Largest 2 | 1 2 1 2 2 Hottest 103 | 20 60 30 100 103 Shots Fired 169 | 5 49 24 77 14 Gun 137 | 5 48 10 65 9 Cannon . | . . . . . Launcher 30 | . 1 14 10 5 Special 2 | . . . 2 . Kinetic 131 | 5 42 10 65 9 Thermal 2 | . . . 2 . Explosive 30 | . 1 14 10 5 Electromagnetic 6 | . 6 . . . Robot Hit Streak 21 | 2 7 6 21 3 Robot Miss Streak 5 | 3 4 4 5 2 Penetration Max . | . . . . . Secondary Targets 2 | . 1 . 1 . Max Gunslinging Chain 1 | . 1 . 1 . Shots Hit Robots 100 | 2 33 14 45 6 Core Hits 108 | 1 16 18 68 5 Critical Kills . | . . . . . Critical Parts Destroyed 1 | . 1 . . . Critical Strikes 1 | . 1 . . . Destroy 1 | . 1 . . . Melee Attacks . | . . . . . Impact . | . . . . . Slashing . | . . . . . Piercing . | . . . . . Sneak Attacks . | . . . . . Combat Hostiles . | . . . . . Follow-up Attacks . | . . . . . Damage Inflicted 3093 | 22 516 549 1796 210 Guns 1164 | 22 449 69 528 96 Cannons . | . . . . . Explosions 1903 | . 67 480 1242 114 Melee . | . . . . . Ramming 5 | . . . 5 . Kinetic 1108 | 22 393 69 528 96 Thermal 21 | . . . 21 . Explosive 1903 | . 67 480 1242 114 Electromagnetic 56 | . 56 . . . Impact . | . . . . . Slashing . | . . . . . Piercing . | . . . . . Highest Corruption 2 | . . . 2 2 Average Corruption 1 | . . . 1 2 Corruption Purged . | . . . . . Corruption Blocked . | . . . . . Effects 10 | . . . 10 . Message Errors 3 | . . . 3 . Matter Fused 1 | . . . 1 . Heat Flow Errors 2 | . . . 2 . Energy Discharges 1 | . . . 1 . Misfires 1 | . . . 1 . Alerts 1 | . . . 1 . Weapon Failures 1 | . . . 1 . Overload Shots . | . . . . . Overflow Damage 123 | . 8 14 90 11 Projectiles . | . . . . . Explosions 123 | . 8 14 90 11 Melee . | . . . . . Knockbacks . | . . . . . Impact . | . . . . . Kinetic . | . . . . . Secondary . | . . . . . Self-Inflicted Damage 96 | . 31 1 64 . Shots 6 | . 1 1 4 . Rammed . | . . . . . Targets Rammed 2 | . . . 2 . Kicked 2 | . . . 2 . Crushed . | . . . . . Highest Temperature 205 | . 51 . 205 106 Average Temperature 45 | . 39 . 46 49 Received Heat Transfer 566 | . 51 228 105 182 Siege Activations . | . . . . . Martial Activations . | . . . . . Shielding Activations . | . . . . . Robots Disrupted . | . . . . . Combat Hostiles . | . . . . . Robots Corrupted . | . . . . . Combat Hostiles . | . . . . . Parts Fried . | . . . . . Impact Corruptions . | . . . . . Robots Melted . | . . . . . Combat Hostiles . | . . . . . Parts Melted . | . . . . . Heat Transferred 160 | . . . 160 . Parts Sabotaged . | . . . . . Parts Stolen . | . . . . . Parts Stripped . | . . . . . Power Chain Reactions . | . . . . . Alert | -11 -10 -10 -9 -9 ------- Run | Yrd Mat Sub Rec Scr Maximum Alert Level 1 | . . . 1 . Low Security (%) 96 | 100 100 . 75 . Level 1 3 | . . . 24 . Level 2 . | . . . . . Level 3 . | . . . . . Level 4 . | . . . . . Level 5 . | . . . . . High Security . | . . . . . Max Security . | . . . . . Peak Influence 263 | 5 85 . 263 . Initial 80 | . 3 . 80 . Average 20 | . 24 . 137 . Influence Increases 823 | 5 206 230 382 . Destroy 0b10 Robot/C 400 | . 80 100 220 . Destroy 0b10 Robot/NC 165 | 5 35 . 125 . Destroy Leader 32 | . 22 10 . . Successful Hack 6 | . . . 6 . Destroy Structure 40 | . 9 . 31 . Lose Combat Pursuer 180 | . 60 120 . . Influence Decreases 823 | . 192 81 524 26 Entered New Map 126 | . 2 10 88 26 Time Decay 597 | . 170 71 356 . Lost Part 60 | . 20 . 40 . Lost Ally 40 | . . . 40 . Squads Dispatched . | . . . . . Investigation . | . . . . . Extermination . | . . . . . Reinforcement . | . . . . . Assault . | . . . . . Garrison . | . . . . . Intercept . | . . . . . Searches Triggered . | . . . . . Construction Impeded . | . . . . . Haulers Reinforced . | . . . . . Active Scanning Responses . | . . . . . Cargo Convoy Interrupts . | . . . . . Stealth | -11 -10 -10 -9 -9 --------- Run | Yrd Mat Sub Rec Scr Distress Signals . | . . . . . Communications Jammed . | . . . . . Distress Signals . | . . . . . Times Spotted 46 | . 12 17 7 10 Peak Tracking Total 6 | . 4 6 4 2 Tactical Retreats 5 | . 3 2 . . Traps | -11 -10 -10 -9 -9 ------- Run | Yrd Mat Sub Rec Scr Traps Triggered . | . . . . . Indirectly . | . . . . . Trap Hack Attempts . | . . . . . Triggered . | . . . . . Disarmed . | . . . . . Reprogrammed . | . . . . . Reused . | . . . . . Traps Extracted . | . . . . . Installed . | . . . . . Triggered . | . . . . . Machines | -11 -10 -10 -9 -9 ---------- Run | Yrd Mat Sub Rec Scr Machines Disabled 5 | . . 3 . 2 Max in Single Turn 3 | . . 3 . 1 Machines Repaired . | . . . . . Machines Dismantled . | . . . . . Machines Sabotaged . | . . . . . Overloaded Fab Kills . | . . . . . Hacking | -11 -10 -10 -9 -9 --------- Run | Yrd Mat Sub Rec Scr Machines Accessed 10 | . . . 4 6 Terminals 3 | . . . 3 . Fabricators . | . . . . . Repair Stations . | . . . . . Recycling Units . | . . . . . Scanalyzers . | . . . . . Garrison Access . | . . . . . Total Hacks 46 | . . . 13 33 Successful 41 | . . . 8 33 Failed 5 | . . . 5 . Catastrophic 1 | . . . 1 . Database Lockouts . | . . . . . Manual 5 | . . . 5 . Terminals 7 | . . . 7 . Fabricators . | . . . . . Repair Stations . | . . . . . Recycling Units . | . . . . . Scanalyzers . | . . . . . Garrison Access . | . . . . . Terminal Hacks 41 | . . . 8 33 Record 33 | . . . 5 28 Robot Analysis 6 | . . . 1 5 Zone Layout 1 | . . . 1 . Release Object 1 | . . . 1 . Fabricator Hacks . | . . . . . Repair Station Hacks . | . . . . . Recycling Unit Hacks . | . . . . . Scanalyzer . | . . . . . Garrison Access Hacks . | . . . . . Unauthorized Hacks . | . . . . . Terminals . | . . . . . Fabricators . | . . . . . Repair Stations . | . . . . . Recycling Units . | . . . . . Scanalyzers . | . . . . . Garrison Access . | . . . . . Data Cores Recovered 1 | . 1 . . . Used . | . . . . . Hacking Detections 3 | . . . 3 . Full Trace Events 1 | . . . 1 . Feedback Events . | . . . . . Feedback Blocked . | . . . . . Robot Schematics Acquired . | . . . . . Robots Built . | . . . . . Authchips . | . . . . . Time . | . . . . . Total Robot Build Rating . | . . . . . Part Schematics Acquired . | . . . . . Parts Built . | . . . . . Authchips . | . . . . . Time . | . . . . . Total Part Build Rating . | . . . . . Parts Repaired . | . . . . . Time . | . . . . . Parts Recycled . | . . . . . Recycled Matter . | . . . . . Retrieved Matter . | . . . . . Retrieved Components . | . . . . . Parts Scanalyzed . | . . . . . Part Schematics Acquired . | . . . . . Parts Damaged . | . . . . . Bothacking | -11 -10 -10 -9 -9 ------------ Run | Yrd Mat Sub Rec Scr Used RIF Installer . | . . . . . Robots Hacked . | . . . . . Non-combat . | . . . . . Combat . | . . . . . Robot Hacks Applied . | . . . . . Relay Couplers Released . | . . . . . Fabnet Peak Effective % . | . . . . . Robots Rewired 4 | . . . 4 . Allies Hacked . | . . . . . Hacks Repelled . | . . . . . Allies | -11 -10 -10 -9 -9 -------- Run | Yrd Mat Sub Rec Scr Total Allies 5 | . . . 4 1 Largest Group 3 | . . . 2 3 Highest-Rated Group 45 | . . . 19 45 Highest-Rated Ally 29 | . . . 15 29 Total Orders . | . . . . . Ally Attacks 11 | . . . 6 5 Total Damage 179 | . . . 65 114 Kills 2 | . . . . 2 Allies Corrupted . | . . . . . Allies Melted 7 | . . . . 7 Intel | -11 -10 -10 -9 -9 ------- Run | Yrd Mat Sub Rec Scr Active Infowar (turns) 1348 | 15 488 845 . . Seismic 1348 | 15 488 845 . . Robot Analysis Total 6 | . . . 1 5 Derelict Logs Recovered 1 | . . . . 1 Drone Launches . | . . . . . Drone Recoveries . | . . . . . Exploration | -11 -10 -10 -9 -9 ------------- Run | Yrd Mat Sub Rec Scr Turns Passed 8379 | 4890 488 869 817 1315 Spaces Moved 3000 | 337 365 783 420 1095 Core . | . . . . . Treads . | . . . . . Legs 539 | 337 . 34 136 32 Wheels 2461 | . 365 749 284 1063 Hover . | . . . . . Flight . | . . . . . Fastest Speed 90 | 120 90 95 115 100 Average Speed 114 | 120 104 102 138 115 Slowest Speed 240 | 120 115 190 190 240 Overloaded Moves . | . . . . . Propulsion Burnouts . | . . . . . Robots Hopped . | . . . . . Potential Cave-ins . | . . . . . Cave-ins Triggered . | . . . . . Exploration Rate (%) 53 | 46 28 55 69 70 Regions Visited 4 Branch Regions 3 Pre-discovered Areas 2 | . . 1 . 1 Known Exits Taken . | . . . . . Unknown Exits Taken 4 | 1 1 1 1 . Scrap Searched 3 | . . . . 3 Spaces Dug . | . . . . . Terrain Destroyed 88 | . 9 31 33 15 Melee . | . . . . . Projectile . | . . . . . AOE 88 | . 9 31 33 15 Terrain Rammed . | . . . . . Walls Destroyed . | . . . . . Machines Disabled . | . . . . . Actions | -11 -10 -10 -9 -9 --------- Run | Yrd Mat Sub Rec Scr Total 7774 | 4817 422 829 574 1132 Wait 4487 | 4475 . 6 . 6 Move 2996 | 336 364 782 419 1095 Hop . | . . . . . Pick Up 19 | . 8 2 4 5 Fast Attach 18 | 1 4 3 7 3 Attach 3 | . . . 2 1 Detach . | . . . . . Swap 11 | . 7 3 . 1 Drop 33 | . 7 9 6 11 Fire 115 | 5 32 24 44 10 Melee . | . . . . . Ram . | . . . . . Kick 2 | . . . 2 . Crush . | . . . . . Escape Stasis . | . . . . . Rewire 90 | . . . 90 . Trap . | . . . . . Miscellaneous . | . . . . . Route ------- -11/Scrapyard -10/Materials (discovered 3 exits: [*Min x2] / [*Sub]) -10/Subcaves -9/Recycling -9/Scraptown (discovered 2 exits: *Fac x2) History --------- Turn | Location | Event 1 | -11/Scrapyard | Discovered new exit (range 1) 4891 | -11/Scrapyard | Entered Materials 4907 | -10/Materials | Discovered new exit (range 16) 4912 | -10/Materials | Build established: Mutant 5084 | -10/Materials | Discovered new exit (range 16) 5208 | -10/Materials | Discovered new exit (range 8) 5379 | -10/Materials | Entered Subcaves 5380 | -10/Subcaves | Shifting Twisted Machinery released Battle Cannon 5380 | -10/Subcaves | Approached by a straggling Scientist 5392 | -10/Subcaves | Shifting Twisted Machinery released Sub. Power Source 5643 | -10/Subcaves | A swath of the cavern ceiling suddenly collapsed 5675 | -10/Subcaves | Build established: Scavenger-Mutant 5831 | -10/Subcaves | Learned location of Zion (-6) 5831 | -10/Subcaves | Met a Zionite searching for "candidates" 6095 | -10/Subcaves | A swath of the cavern ceiling suddenly collapsed 6103 | -10/Subcaves | Shifting Twisted Machinery released Scrap Shield 6202 | -10/Subcaves | Discovered new exit (range 13) 6248 | -10/Subcaves | Entered Recycling 6276 | -9/Recycling | Core integrity fell below 50% 6314 | -9/Recycling | Destroyed 8 combat bots 6514 | -9/Recycling | Build established: Mutant 7037 | -9/Recycling | Scanned before Scraplab entrance 7053 | -9/Recycling | Entered Scraplab 7063 | -9/Recycling | Discovered new exit (range 3) 7065 | -9/Recycling | Entered Scraptown 7065 | -9/Scraptown | Accompanied by 2 allies 7068 | -9/Scraptown | System corruption cleaned by C-Scrubber 7278 | -9/Scraptown | Visited Assassins FH 7336 | -9/Scraptown | Visited Symbiants 7373 | -9/Scraptown | Visited Shadow of the Wyrm 7408 | -9/Scraptown | Visited Red Mages 7484 | -9/Scraptown | Received an X-ray algorithm 7492 | -9/Scraptown | Scanned Subdweller tech in exchange for log data 7495 | -9/Scraptown | Learned location of Warlord (-4) 7512 | -9/Scraptown | Discovered new exit (range 5) 7714 | -9/Scraptown | Visited The Evicted 7741 | -9/Scraptown | Visited UFD Registry 7741 | -9/Scraptown | Registered with UFD as "Waveflow" 7779 | -9/Scraptown | Visited Chapter 10 7827 | -9/Scraptown | Visited Botcube Research 7865 | -9/Scraptown | Found Botcube 7880 | -9/Scraptown | Botcube activated 7890 | -9/Scraptown | Botcube completed mutation into treaded form, armed with 1 launcher. 7904 | -9/Scraptown | Visited Analyses Database 7965 | -9/Scraptown | Visited Infowarlord's Domain 7976 | -9/Scraptown | Found Active Sensor Suite 8001 | -9/Scraptown | Visited Curators Association 8031 | -9/Scraptown | Visited Scrap Suit Storage 8052 | -9/Scraptown | Visited Abandonware Association 8070 | -9/Scraptown | Learned abandonware demo "SHUTEYE.EXE" 8097 | -9/Scraptown | Visited Supply Room 8185 | -9/Scraptown | Met Optimus 8185 | -9/Scraptown | Accepted into 0bPrime 8264 | -9/Scraptown | Civil war broke out across Scraptown 8329 | -9/Scraptown | Lost 3 allies 8339 | -9/Scraptown | Core integrity fell below 20% 8340 | -9/Scraptown | Identified exit to Factory 8379 | -9/Scraptown | Lost 3 allies 8380 | -9/Scraptown | Destroyed by NW-540(j) with Overtuned Pulse Rifle Last Messages --------------- win in 0b1. Believe it." 08342_ Dropped Hvy. Assault Rifle. 08343_ Acquired 13 matter. Optimus: "Someone shut down Triborg? Who would do that? How?!" 08364_ Destroyed Mak. Salvage Targeting Computer. 08366_ Mutated Botcube suffers critical hit (Burn). 08369_ OL-CZX(j) destroyed. 08369_ 2C-6TL(j) destroyed. 08370_ Ovr. Titanium Leg suddenly begins malfunctioning. 08372_ Machine disabled. 08372_ Critical hit (Burn: +50). 08374_ U3-EWX(g) destroyed. 08374_ Critical hit (Burn: +50). 08375_ NW-540(j) heat spikes uncontrollably. 08379_ Enclosure breached. [Achievement: I Think I Know What's Going On] Map ----- +----------------------------------------------------+ | """"""""" """"""""""" """"" "" "#???"""""???????? | | "#?? " "" "#?????? | | "#?? " "" "#?????? | | "#?" "#?????? | | "##" """"#?????? | | " "#?????? | | """"""""""""""""""""""""""" "##" " "" "#?????? | | """"""""""""""""""""""""""" "#?" " "" ???????? | | "###### ################"" "#?? """"????????? | | "# ##????????#"" "#??#####????????? | | "# X"#????????#"" "#???????????????? | | "# "" "" ##????????#"" "#???????????????? | | "# "" "" X"#??????###"" !%= ###########?????? | | "# " " ######### #"" ! ## #?????? | | " "" %= #?????? | | " "" [[%! "## #?????? | | "# " " ######### #""[ "## #?????? | | "# "" "" ""#??????###""%* ! ## #?????? | | "# "" "" ##????????#""! !% ## ########?????? | | "# X"#????????#" * ##???????????? | | "# ##??????###"" ####??##????? | | "###### ############## "" ##"###"#????? | | """""""""""""""""" """"" ! ="!" "!" #????? | | """" " """ """ "" %!""" """ ###??? | | = [ %! %* [ % "#??? | | [=!! = % u @!M [ ""#???? | | !=%!! != !%= "=#???? | | =[[%=*% j % ""#???? | | !%!*[%!!! %! "#??? | | """"" """"*" ""% """ """"" # "" """ ###??? | | ########### ######;#### ###### ## "]" "]" #????? | | # ! #?#### # ##"###"###"#????? | | !!# =% #????## ## ####?###??##????? | | !!# """" #????#" !"# #???????????????? | | "# "###" #????#"! !"# #???????????????? | | """# "#X#" #????#" "# #???????????????? | | """# "# #" #????#"! !"# ############????? | | ####?# #????#" "# #????? | | ?????# " " " #????####X ## ##????? | | ?????#"""""""" #????????" "# #????? | | ?????###########???????? !"# #????? | | ????????????????????????###### #????? | | ?????????????????????????????# ############????? | | ?????????????????????????????# #???????????????? | | ?????????????????????????????# ""??????????????? | | ?????????????????????????????# "" ?????????????? | | ????????????????????????????? "????????????? | | ????????????????????????????? " "????????????? | | ???????????????????????????? """"????????????? | | ???????????????????????????? ## ######???????????? | +----------------------------------------------------+ Best States ------------- Heat Dissipation 25 Energy Generation 19 Energy Capacity 315 Matter Stores 300 Matter Capacity 300 Sight Range 16 Terrain Scan Density 10 Evasion (%) 55 Targeting Accuracy 6 Item Schematics ----------------- None Robot Schematics ------------------ None Fabricated ------------ Nothing Repaired ---------- Nothing Alien Tech Used ----------------- None Achievements -------------- Dramatic Entrance I Think I Know What's Going On Challenges ------------ None Game ------ Seed CorruptionGravitonTendrils Manual? 0 Play Time 00:45:51 Cumulative 106.7 hours Start 2025.05.27 @ 18:41:00 End 2025.05.27 @ 19:26:06 Sessions 1 Manual Loads 0 Difficulty Rogue Special Mode None Game No. 75 Rogue 75 Adventurer 0 Explorer 0 Win Type - Total 0 Types 0/0/0/0/0/0/0/0/0/0 Lore% 51 Gallery% 48 Achievement% 39 Wizard Run 0 Options --------- Layout 1 ASCII 0 Keyboard 0 Movement Mouse Keybinds 0 Fullscreen 1 Font 24/Smallcaps Map View 50x35 Zoom Use 0% Tactical HUD 1 Map Filters NONE Filters NONE Steam 1 RUN: 471f5898-fee2-4c23-9846-b68618ea4b55